[Event "Titled Tuesday Blitz July 11 Late 2023"]
[White "Villuendas Valero, Adrian"]
[Black "Funderburg, John T"]
[WhiteFideId "2262460"]
[BlackFideId "2004992"]
[WhiteElo "2370"]
[BlackElo "1997"]
[Result "1-0"]
[Round "5"]
[TimeControl "180+2"]
[Date "2023.07.11"]
[WhiteClock "0:00:58"]
[BlackClock "0:00:00"]
[Board "157"]

1. d4 {[%clk 0:03:00]}  Nf6 {[%clk 0:02:59]} 2. c4 {[%clk 0:02:59]}  e6 {[%clk 0:02:58]} 3. Nc3 {[%clk 0:02:58]}  Bb4 {[%clk 0:02:58]} 4. e3 {[%clk 0:02:58]}  O-O {[%clk 0:02:47]} 5. Ne2 {[%clk 0:02:55]}  Re8 {[%clk 0:02:47]} 6. a3 {[%clk 0:02:55]}  Bf8 {[%clk 0:02:47]} 7. Bd2 {[%clk 0:02:53]}  d6 {[%clk 0:02:43]} 8. Ng3 {[%clk 0:02:53]}  e5 {[%clk 0:02:42]} 9. d5 {[%clk 0:02:34]}  c6 {[%clk 0:02:32]} 10. Bd3 {[%clk 0:02:33]}  Nbd7 {[%clk 0:02:20]} 11. O-O {[%clk 0:02:29]}  cxd5 {[%clk 0:01:29]} 12. cxd5 {[%clk 0:02:27]}  Nc5 {[%clk 0:01:29]} 13. Bc2 {[%clk 0:02:26]}  a5 {[%clk 0:01:30]} 14. b4 {[%clk 0:02:22]}  Na6 {[%clk 0:01:22]} 15. bxa5 {[%clk 0:02:10]}  Nc5 {[%clk 0:01:19]} 16. Nce4 {[%clk 0:02:03]}  Nfxe4 {[%clk 0:01:14]} 17. Nxe4 {[%clk 0:02:04]}  Nxe4 {[%clk 0:01:12]} 18. Bxe4 {[%clk 0:02:05]}  f5 {[%clk 0:00:57]} 19. Bd3 {[%clk 0:02:01]}  e4 {[%clk 0:00:46]} 20. Bb5 {[%clk 0:01:58]}  Bd7 {[%clk 0:00:46]} 21. Qb3 {[%clk 0:01:53]}  Be7 {[%clk 0:00:41]} 22. Rab1 {[%clk 0:01:48]}  Rb8 {[%clk 0:00:19]} 23. a4 {[%clk 0:01:31]}  Bf6 {[%clk 0:00:19]} 24. Bc3 {[%clk 0:01:29]}  Bxc3 {[%clk 0:00:18]} 25. Qxc3 {[%clk 0:01:30]}  Qe7 {[%clk 0:00:15]} 26. Qc7 {[%clk 0:01:23]}  Red8 {[%clk 0:00:07]} 27. Bxd7 {[%clk 0:01:22]}  Qxd7 {[%clk 0:00:08]} 28. Qxd7 {[%clk 0:01:22]}  Rxd7 {[%clk 0:00:09]} 29. Rb6 {[%clk 0:01:13]}  Rc8 {[%clk 0:00:03]} 30. g3 {[%clk 0:01:08]}  Rc4 {[%clk 0:00:03]} 31. a6 {[%clk 0:01:05]}  bxa6 {[%clk 0:00:02]} 32. Rxa6 {[%clk 0:01:01]}  Kf7 {[%clk 0:00:00]} 33. Rb1 {[%clk 0:00:58]} 1-0


[Site "https://www.chess.com"]

[Event "Titled Tuesday Blitz July 11 Late 2023"]
[White "Cardenas Carbajal, Nilson"]
[Black "Blitz"]
[WhiteFideId "8401128"]
[WhiteElo "2147"]
[BlackElo "2500"]
[Result "1-0"]
[Round "5"]
[TimeControl "180+2"]
[Date "2023.07.11"]
[WhiteClock "0:00:08"]
[BlackClock "0:00:03"]
[Board "162"]

1. e4 {[%clk 0:03:00]}  c5 {[%clk 0:02:56]} 2. d4 {[%clk 0:03:00]}  cxd4 {[%clk 0:02:56]} 3. c3 {[%clk 0:02:59]}  dxc3 {[%clk 0:02:57]} 4. Nxc3 {[%clk 0:02:59]}  Nc6 {[%clk 0:02:57]} 5. Nf3 {[%clk 0:02:58]}  d6 {[%clk 0:02:56]} 6. Bc4 {[%clk 0:02:57]}  a6 {[%clk 0:02:52]} 7. O-O {[%clk 0:02:56]}  e6 {[%clk 0:02:49]} 8. Qe2 {[%clk 0:02:56]}  Nf6 {[%clk 0:02:49]} 9. Rd1 {[%clk 0:02:56]}  Qc7 {[%clk 0:02:48]} 10. Bf4 {[%clk 0:02:52]}  Be7 {[%clk 0:02:46]} 11. Rac1 {[%clk 0:02:48]}  O-O {[%clk 0:02:45]} 12. Bb3 {[%clk 0:02:39]}  Rd8 {[%clk 0:02:24]} 13. Nd5 {[%clk 0:02:28]}  exd5 {[%clk 0:02:24]} 14. exd5 {[%clk 0:02:27]}  Bf5 {[%clk 0:02:13]} 15. dxc6 {[%clk 0:02:25]}  bxc6 {[%clk 0:02:14]} 16. Nd4 {[%clk 0:02:23]}  Be4 {[%clk 0:01:46]} 17. Nxc6 {[%clk 0:01:18]}  Bxc6 {[%clk 0:01:39]} 18. Ba4 {[%clk 0:01:17]}  Rac8 {[%clk 0:00:58]} 19. Rxc6 {[%clk 0:01:14]}  Qb7 {[%clk 0:00:58]} 20. Rxc8 {[%clk 0:01:13]}  Rxc8 {[%clk 0:00:59]} 21. h3 {[%clk 0:01:08]}  d5 {[%clk 0:00:52]} 22. Re1 {[%clk 0:00:54]}  Bb4 {[%clk 0:00:40]} 23. Rd1 {[%clk 0:00:39]}  h6 {[%clk 0:00:34]} 24. Qf3 {[%clk 0:00:34]}  Bc5 {[%clk 0:00:33]} 25. Bxh6 {[%clk 0:00:27]}  Ne4 {[%clk 0:00:20]} 26. Be3 {[%clk 0:00:24]}  Qxb2 {[%clk 0:00:18]} 27. Bxc5 {[%clk 0:00:21]}  Rxc5 {[%clk 0:00:19]} 28. Bb3 {[%clk 0:00:20]}  Qe5 {[%clk 0:00:13]} 29. Qe3 {[%clk 0:00:19]}  Rc3 {[%clk 0:00:13]} 30. Qd4 {[%clk 0:00:13]}  Qf4 {[%clk 0:00:08]} 31. Bxd5 {[%clk 0:00:10]}  Rc2 {[%clk 0:00:05]} 32. Bxe4 {[%clk 0:00:08]}  Rxf2 {[%clk 0:00:03]} 33. Qd8# {[%clk 0:00:08]} 1-0


[Site "https://www.chess.com"]

[Event "Titled Tuesday Blitz July 11 Late 2023"]
[White "Khairat , Ahmed"]
[Black "Vila Dupla, Aurelio"]
[WhiteFideId "10624171"]
[BlackFideId "2203383"]
[WhiteElo "2381"]
[BlackElo "2146"]
[Result "0-1"]
[Round "5"]
[TimeControl "180+2"]
[Date "2023.07.11"]
[WhiteClock "0:00:18"]
[BlackClock "0:00:21"]
[Board "163"]

1. e4 {[%clk 0:03:00]}  c5 {[%clk 0:02:58]} 2. Nf3 {[%clk 0:02:59]}  d6 {[%clk 0:02:57]} 3. d4 {[%clk 0:03:00]}  cxd4 {[%clk 0:02:57]} 4. Nxd4 {[%clk 0:03:01]}  Nf6 {[%clk 0:02:56]} 5. Nc3 {[%clk 0:03:01]}  g6 {[%clk 0:02:56]} 6. Be3 {[%clk 0:03:02]}  Bg7 {[%clk 0:02:57]} 7. Bc4 {[%clk 0:03:02]}  O-O {[%clk 0:02:57]} 8. Bb3 {[%clk 0:03:03]}  Nc6 {[%clk 0:02:57]} 9. f3 {[%clk 0:03:03]}  Ne5 {[%clk 0:02:53]} 10. g4 {[%clk 0:03:03]}  a6 {[%clk 0:02:33]} 11. h4 {[%clk 0:03:02]}  b5 {[%clk 0:02:32]} 12. h5 {[%clk 0:03:02]}  Nc4 {[%clk 0:02:32]} 13. Bxc4 {[%clk 0:03:01]}  bxc4 {[%clk 0:02:32]} 14. hxg6 {[%clk 0:03:02]}  fxg6 {[%clk 0:02:31]} 15. Qe2 {[%clk 0:03:02]}  Qc7 {[%clk 0:02:19]} 16. O-O-O {[%clk 0:02:57]}  e5 {[%clk 0:02:16]} 17. Qh2 {[%clk 0:02:27]}  exd4 {[%clk 0:02:14]} 18. Bxd4 {[%clk 0:02:28]}  Bh8 {[%clk 0:02:03]} 19. Qh6 {[%clk 0:02:15]}  Bb7 {[%clk 0:01:54]} 20. Rh2 {[%clk 0:02:08]}  Rf7 {[%clk 0:01:11]} 21. Rdh1 {[%clk 0:02:04]}  Bg7 {[%clk 0:01:10]} 22. Qh4 {[%clk 0:02:02]}  Rb8 {[%clk 0:00:59]} 23. f4 {[%clk 0:01:47]}  Re8 {[%clk 0:00:30]} 24. e5 {[%clk 0:01:35]}  dxe5 {[%clk 0:00:30]} 25. Bxe5 {[%clk 0:01:35]}  Rxe5 {[%clk 0:00:30]} 26. fxe5 {[%clk 0:01:36]}  Qxe5 {[%clk 0:00:30]} 27. Re1 {[%clk 0:01:33]}  Qf4+ {[%clk 0:00:30]} 28. Kb1 {[%clk 0:01:33]}  Qxg4 {[%clk 0:00:22]} 29. Re8+ {[%clk 0:01:21]}  Bf8 {[%clk 0:00:22]} 30. Qxg4 {[%clk 0:01:08]}  Nxg4 {[%clk 0:00:22]} 31. Rd2 {[%clk 0:01:04]}  Nf6 {[%clk 0:00:22]} 32. Rb8 {[%clk 0:01:01]}  Kg7 {[%clk 0:00:22]} 33. b3 {[%clk 0:00:58]}  Bb4 {[%clk 0:00:22]} 34. Kb2 {[%clk 0:00:27]}  Bxc3+ {[%clk 0:00:21]} 35. Kxc3 {[%clk 0:00:27]}  Ne4+ {[%clk 0:00:21]} 36. Kxc4 {[%clk 0:00:25]}  Nxd2+ {[%clk 0:00:21]} 37. Kd3 {[%clk 0:00:25]}  Ne4 {[%clk 0:00:21]} 38. c4 {[%clk 0:00:25]}  h5 {[%clk 0:00:21]} 39. b4 {[%clk 0:00:25]}  h4 {[%clk 0:00:21]} 40. a4 {[%clk 0:00:18]}  h3 {[%clk 0:00:21]} 0-1


[Site "https://www.chess.com"]

[Event "Titled Tuesday Blitz July 11 Late 2023"]
[White "Silvestre, Christian"]
[Black "Winkels, Marcel"]
[WhiteFideId "30956269"]
[BlackFideId "1003887"]
[WhiteElo "2334"]
[BlackElo "2112"]
[Result "1-0"]
[Round "5"]
[TimeControl "180+2"]
[Date "2023.07.11"]
[WhiteClock "0:00:32"]
[BlackClock "0:00:00"]
[Board "165"]

1. e4 {[%clk 0:02:56]}  c5 {[%clk 0:03:00]} 2. Nf3 {[%clk 0:02:53]}  e6 {[%clk 0:03:01]} 3. c3 {[%clk 0:02:52]}  Nf6 {[%clk 0:02:57]} 4. e5 {[%clk 0:02:45]}  Nd5 {[%clk 0:02:57]} 5. Bc4 {[%clk 0:02:41]}  Nb6 {[%clk 0:02:54]} 6. Bb3 {[%clk 0:02:40]}  c4 {[%clk 0:02:54]} 7. Bc2 {[%clk 0:02:40]}  d5 {[%clk 0:02:52]} 8. exd6 {[%clk 0:02:41]}  Qxd6 {[%clk 0:02:51]} 9. Qe2 {[%clk 0:02:39]}  Be7 {[%clk 0:02:46]} 10. O-O {[%clk 0:02:38]}  O-O {[%clk 0:02:39]} 11. Rd1 {[%clk 0:02:39]}  Nc6 {[%clk 0:02:32]} 12. d3 {[%clk 0:02:39]}  Qd5 {[%clk 0:02:20]} 13. Nbd2 {[%clk 0:02:29]}  cxd3 {[%clk 0:02:18]} 14. Bxd3 {[%clk 0:02:30]}  Qh5 {[%clk 0:02:17]} 15. Ne4 {[%clk 0:02:29]}  e5 {[%clk 0:02:08]} 16. Ng3 {[%clk 0:02:26]}  Qg4 {[%clk 0:01:53]} 17. a4 {[%clk 0:02:19]}  Qe6 {[%clk 0:01:39]} 18. a5 {[%clk 0:02:15]}  Nd7 {[%clk 0:01:35]} 19. Bc4 {[%clk 0:02:05]}  Qg6 {[%clk 0:01:31]} 20. h4 {[%clk 0:02:01]}  h5 {[%clk 0:01:02]} 21. Ng5 {[%clk 0:01:44]}  Bxg5 {[%clk 0:00:51]} 22. Bxg5 {[%clk 0:01:44]}  Nc5 {[%clk 0:00:38]} 23. Qxh5 {[%clk 0:01:26]}  Qxh5 {[%clk 0:00:32]} 24. Nxh5 {[%clk 0:01:27]}  Bg4 {[%clk 0:00:30]} 25. Ng3 {[%clk 0:01:20]}  Bxd1 {[%clk 0:00:29]} 26. Rxd1 {[%clk 0:01:19]}  Kh8 {[%clk 0:00:24]} 27. b4 {[%clk 0:01:14]}  Ne6 {[%clk 0:00:20]} 28. Be3 {[%clk 0:01:10]}  Rad8 {[%clk 0:00:18]} 29. Re1 {[%clk 0:01:05]}  f5 {[%clk 0:00:16]} 30. Bxe6 {[%clk 0:01:01]}  f4 {[%clk 0:00:16]} 31. Bc5 {[%clk 0:00:57]}  fxg3 {[%clk 0:00:15]} 32. Bxf8 {[%clk 0:00:52]}  gxf2+ {[%clk 0:00:15]} 33. Kxf2 {[%clk 0:00:52]}  Rxf8+ {[%clk 0:00:15]} 34. Kg3 {[%clk 0:00:48]}  Rf6 {[%clk 0:00:13]} 35. Bd5 {[%clk 0:00:43]}  Rf5 {[%clk 0:00:12]} 36. a6 {[%clk 0:00:39]}  Nd8 {[%clk 0:00:00]} 37. axb7 {[%clk 0:00:32]} 1-0


[Site "https://www.chess.com"]

[Event "Titled Tuesday Blitz July 11 Late 2023"]
[White "campochess"]
[Black "Elaisaz"]
[WhiteElo "2108"]
[BlackElo "2283"]
[Result "1-0"]
[Round "5"]
[TimeControl "180+2"]
[Date "2023.07.11"]
[WhiteClock "0:00:15"]
[BlackClock "0:00:28"]
[Board "166"]

1. d4 {[%clk 0:02:49]}  e6 {[%clk 0:02:50]} 2. c4 {[%clk 0:02:47]}  Nf6 {[%clk 0:02:49]} 3. Nf3 {[%clk 0:02:46]}  b6 {[%clk 0:02:50]} 4. g3 {[%clk 0:02:46]}  Bb7 {[%clk 0:02:50]} 5. Bg2 {[%clk 0:02:46]}  Bb4+ {[%clk 0:02:49]} 6. Bd2 {[%clk 0:02:44]}  Be7 {[%clk 0:02:49]} 7. Nc3 {[%clk 0:02:42]}  O-O {[%clk 0:02:47]} 8. Qc2 {[%clk 0:02:42]}  c5 {[%clk 0:02:47]} 9. e3 {[%clk 0:02:33]}  cxd4 {[%clk 0:02:46]} 10. exd4 {[%clk 0:02:33]}  d5 {[%clk 0:02:46]} 11. cxd5 {[%clk 0:02:31]}  Nxd5 {[%clk 0:02:46]} 12. O-O {[%clk 0:02:28]}  Nb4 {[%clk 0:02:36]} 13. Qd1 {[%clk 0:02:26]}  N8c6 {[%clk 0:02:36]} 14. a3 {[%clk 0:02:23]}  Nd5 {[%clk 0:02:23]} 15. Ne2 {[%clk 0:02:22]}  Nf6 {[%clk 0:02:21]} 16. Rc1 {[%clk 0:02:17]}  Rc8 {[%clk 0:02:16]} 17. Qa4 {[%clk 0:02:14]}  Qd7 {[%clk 0:02:14]} 18. Rfd1 {[%clk 0:02:01]}  Rfd8 {[%clk 0:01:56]} 19. Bg5 {[%clk 0:02:00]}  Nd5 {[%clk 0:01:55]} 20. Bxe7 {[%clk 0:01:59]}  Qxe7 {[%clk 0:01:54]} 21. Ne5 {[%clk 0:01:54]}  Nxe5 {[%clk 0:01:38]} 22. dxe5 {[%clk 0:01:54]}  Rxc1 {[%clk 0:01:30]} 23. Rxc1 {[%clk 0:01:39]}  Qg5 {[%clk 0:01:30]} 24. Qxa7 {[%clk 0:01:21]}  Ba8 {[%clk 0:01:17]} 25. f4 {[%clk 0:01:06]}  Qg4 {[%clk 0:01:16]} 26. Nd4 {[%clk 0:01:05]}  Nxf4 {[%clk 0:01:05]} 27. Qxb6 {[%clk 0:00:46]}  Rf8 {[%clk 0:00:56]} 28. Bxa8 {[%clk 0:00:43]}  Nh3+ {[%clk 0:00:56]} 29. Kg2 {[%clk 0:00:32]}  Nf4+ {[%clk 0:00:55]} 30. Kf2 {[%clk 0:00:30]}  Nh3+ {[%clk 0:00:54]} 31. Ke1 {[%clk 0:00:24]}  Rxa8 {[%clk 0:00:51]} 32. Qb7 {[%clk 0:00:20]}  Rf8 {[%clk 0:00:46]} 33. Rc8 {[%clk 0:00:19]}  g6 {[%clk 0:00:43]} 34. Rxf8+ {[%clk 0:00:19]}  Kxf8 {[%clk 0:00:44]} 35. Nc6 {[%clk 0:00:18]}  Qe4+ {[%clk 0:00:42]} 36. Kd1 {[%clk 0:00:18]}  Nf2+ {[%clk 0:00:41]} 37. Kc1 {[%clk 0:00:18]}  Nd3+ {[%clk 0:00:40]} 38. Kd2 {[%clk 0:00:18]}  Nxe5 {[%clk 0:00:29]} 39. Qb8+ {[%clk 0:00:17]}  Kg7 {[%clk 0:00:28]} 40. Qxe5+ {[%clk 0:00:17]}  Qxe5 {[%clk 0:00:27]} 41. Nxe5 {[%clk 0:00:17]}  Kf6 {[%clk 0:00:28]} 42. Nd3 {[%clk 0:00:16]}  e5 {[%clk 0:00:27]} 43. a4 {[%clk 0:00:15]}  Ke6 {[%clk 0:00:28]} 1-0


[Site "https://www.chess.com"]

[Event "Titled Tuesday Blitz July 11 Late 2023"]
[White "Hartikainen, Jarmo"]
[Black "Manon-og, Ramon Jr."]
[WhiteFideId "503134"]
[BlackFideId "5200776"]
[WhiteElo "2105"]
[BlackElo "2282"]
[Result "0-1"]
[Round "5"]
[TimeControl "180+2"]
[Date "2023.07.11"]
[WhiteClock "0:00:00"]
[BlackClock "0:01:45"]
[Board "167"]

1. e4 {[%clk 0:03:00]}  c5 {[%clk 0:02:58]} 2. c3 {[%clk 0:03:00]}  Nf6 {[%clk 0:02:56]} 3. e5 {[%clk 0:03:00]}  Nd5 {[%clk 0:02:56]} 4. d4 {[%clk 0:03:00]}  cxd4 {[%clk 0:02:57]} 5. Nf3 {[%clk 0:03:00]}  Nc6 {[%clk 0:02:56]} 6. cxd4 {[%clk 0:02:58]}  d6 {[%clk 0:02:56]} 7. Nc3 {[%clk 0:02:55]}  Nxc3 {[%clk 0:02:52]} 8. bxc3 {[%clk 0:02:54]}  dxe5 {[%clk 0:02:52]} 9. d5 {[%clk 0:02:50]}  Nb8 {[%clk 0:02:45]} 10. Nxe5 {[%clk 0:02:46]}  Qc7 {[%clk 0:02:43]} 11. Qd4 {[%clk 0:02:08]}  Nd7 {[%clk 0:02:42]} 12. Bb5 {[%clk 0:01:58]}  a6 {[%clk 0:02:42]} 13. Bxd7+ {[%clk 0:01:56]}  Bxd7 {[%clk 0:02:43]} 14. Bf4 {[%clk 0:01:29]}  Rc8 {[%clk 0:02:37]} 15. Rc1 {[%clk 0:01:27]}  Qa5 {[%clk 0:02:36]} 16. Nxd7 {[%clk 0:01:14]}  Kxd7 {[%clk 0:02:35]} 17. O-O {[%clk 0:01:13]}  Qc5 {[%clk 0:02:23]} 18. Qe5 {[%clk 0:01:00]}  Qd6 {[%clk 0:02:07]} 19. Qf5+ {[%clk 0:00:52]}  e6 {[%clk 0:02:08]} 20. Qxf7+ {[%clk 0:00:51]}  Qe7 {[%clk 0:02:07]} 21. dxe6+ {[%clk 0:00:50]}  Kc6 {[%clk 0:02:08]} 22. Rfd1 {[%clk 0:00:40]}  Qxf7 {[%clk 0:02:07]} 23. exf7 {[%clk 0:00:40]}  Bc5 {[%clk 0:02:06]} 24. Rd2 {[%clk 0:00:23]}  Rhf8 {[%clk 0:02:05]} 25. Rcd1 {[%clk 0:00:16]}  Rxf7 {[%clk 0:02:04]} 26. Bg3 {[%clk 0:00:16]}  Rcf8 {[%clk 0:02:01]} 27. h3 {[%clk 0:00:15]}  g5 {[%clk 0:01:54]} 28. a4 {[%clk 0:00:14]}  h5 {[%clk 0:01:53]} 29. h4 {[%clk 0:00:11]}  gxh4 {[%clk 0:01:48]} 30. Bxh4 {[%clk 0:00:11]}  Rf4 {[%clk 0:01:49]} 31. a5 {[%clk 0:00:09]}  Rxh4 {[%clk 0:01:48]} 32. g3 {[%clk 0:00:06]}  Rg4 {[%clk 0:01:48]} 33. Kg2 {[%clk 0:00:06]}  h4 {[%clk 0:01:47]} 34. Rd3 {[%clk 0:00:05]}  Rxf2+ {[%clk 0:01:46]} 35. Kh3 {[%clk 0:00:06]}  Rxg3+ {[%clk 0:01:47]} 36. Kxh4 {[%clk 0:00:00]}  Rg8 {[%clk 0:01:45]} 0-1


[Site "https://www.chess.com"]

[Event "Titled Tuesday Blitz July 11 Late 2023"]
[White "UgarteCesar"]
[Black "Gamboa, Juan Pablo"]
[BlackFideId "105180"]
[WhiteElo "2196"]
[BlackElo "1915"]
[Result "1/2-1/2"]
[Round "5"]
[TimeControl "180+2"]
[Date "2023.07.11"]
[WhiteClock "0:00:10"]
[BlackClock "0:00:12"]
[Board "172"]

1. d4 {[%clk 0:03:00]}  e6 {[%clk 0:02:59]} 2. Bf4 {[%clk 0:03:00]}  d5 {[%clk 0:02:59]} 3. e3 {[%clk 0:03:00]}  Bd6 {[%clk 0:02:59]} 4. Bg3 {[%clk 0:03:00]}  Nf6 {[%clk 0:02:59]} 5. Nf3 {[%clk 0:03:01]}  O-O {[%clk 0:03:00]} 6. Bd3 {[%clk 0:03:00]}  c5 {[%clk 0:03:00]} 7. c3 {[%clk 0:03:01]}  Qc7 {[%clk 0:03:01]} 8. Ne5 {[%clk 0:02:59]}  Nbd7 {[%clk 0:02:57]} 9. f4 {[%clk 0:02:59]}  Ne4 {[%clk 0:02:54]} 10. Nd2 {[%clk 0:02:52]}  cxd4 {[%clk 0:02:43]} 11. exd4 {[%clk 0:02:50]}  Nxd2 {[%clk 0:02:20]} 12. Qxd2 {[%clk 0:02:47]}  f6 {[%clk 0:02:20]} 13. Nxd7 {[%clk 0:02:47]}  Bxd7 {[%clk 0:02:19]} 14. O-O {[%clk 0:02:47]}  e5 {[%clk 0:02:12]} 15. fxe5 {[%clk 0:02:46]}  fxe5 {[%clk 0:02:12]} 16. dxe5 {[%clk 0:02:41]}  Bxe5 {[%clk 0:02:12]} 17. Bxe5 {[%clk 0:02:00]}  Qxe5 {[%clk 0:02:12]} 18. Rae1 {[%clk 0:01:57]}  Rxf1+ {[%clk 0:02:11]} 19. Bxf1 {[%clk 0:01:53]}  Qd6 {[%clk 0:02:02]} 20. Be2 {[%clk 0:01:32]}  Re8 {[%clk 0:01:51]} 21. Rd1 {[%clk 0:01:31]}  Qb6+ {[%clk 0:01:32]} 22. Kh1 {[%clk 0:01:30]}  Bc6 {[%clk 0:01:20]} 23. Bf3 {[%clk 0:01:29]}  Kh8 {[%clk 0:00:54]} 24. h3 {[%clk 0:01:29]}  h6 {[%clk 0:00:29]} 25. b4 {[%clk 0:01:17]}  a5 {[%clk 0:00:26]} 26. a3 {[%clk 0:01:17]}  axb4 {[%clk 0:00:25]} 27. axb4 {[%clk 0:01:18]}  Qe3 {[%clk 0:00:18]} 28. Qd4 {[%clk 0:00:39]}  Qxd4 {[%clk 0:00:18]} 29. Rxd4 {[%clk 0:00:40]}  Re3 {[%clk 0:00:18]} 30. c4 {[%clk 0:00:34]}  dxc4 {[%clk 0:00:18]} 31. Bxc6 {[%clk 0:00:34]}  bxc6 {[%clk 0:00:18]} 32. Rxc4 {[%clk 0:00:35]}  Rb3 {[%clk 0:00:18]} 33. h4 {[%clk 0:00:31]}  g6 {[%clk 0:00:18]} 34. g4 {[%clk 0:00:31]}  Kg7 {[%clk 0:00:18]} 35. Kg2 {[%clk 0:00:31]}  h5 {[%clk 0:00:18]} 36. gxh5 {[%clk 0:00:31]}  g5 {[%clk 0:00:19]} 37. hxg5 {[%clk 0:00:31]}  Rb2+ {[%clk 0:00:18]} 38. Kg3 {[%clk 0:00:31]}  Rb3+ {[%clk 0:00:18]} 39. Kf4 {[%clk 0:00:31]}  Rb1 {[%clk 0:00:17]} 40. Ke5 {[%clk 0:00:31]}  Re1+ {[%clk 0:00:17]} 41. Kd6 {[%clk 0:00:31]}  Rg1 {[%clk 0:00:18]} 42. Rc5 {[%clk 0:00:31]}  Rg4 {[%clk 0:00:17]} 43. Rxc6 {[%clk 0:00:24]}  Rxb4 {[%clk 0:00:17]} 44. Rc7+ {[%clk 0:00:25]}  Kg8 {[%clk 0:00:18]} 45. Ke6 {[%clk 0:00:21]}  Rh4 {[%clk 0:00:17]} 46. h6 {[%clk 0:00:21]}  Rf4 {[%clk 0:00:16]} 47. g6 {[%clk 0:00:19]}  Rf8 {[%clk 0:00:16]} 48. Re7 {[%clk 0:00:17]}  Ra8 {[%clk 0:00:15]} 49. Kf6 {[%clk 0:00:16]}  Ra6+ {[%clk 0:00:14]} 50. Re6 {[%clk 0:00:16]}  Ra8 {[%clk 0:00:14]} 51. g7 {[%clk 0:00:16]}  Kh7 {[%clk 0:00:14]} 52. Kf7 {[%clk 0:00:14]}  Ra7+ {[%clk 0:00:14]} 53. Re7 {[%clk 0:00:14]}  Ra8 {[%clk 0:00:14]} 54. g8=Q+ {[%clk 0:00:11]}  Rxg8 {[%clk 0:00:12]} 55. Kf6+ {[%clk 0:00:10]}  Kh8 {[%clk 0:00:12]} 56. Rf7 {[%clk 0:00:06]}  Ra8 {[%clk 0:00:10]} 57. Kg6 {[%clk 0:00:06]}  Ra6+ {[%clk 0:00:10]} 58. Rf6 {[%clk 0:00:06]}  Rxf6+ {[%clk 0:00:10]} 59. Kxf6 {[%clk 0:00:06]}  Kh7 {[%clk 0:00:11]} 60. Kg5 {[%clk 0:00:07]}  Kh8 {[%clk 0:00:11]} 61. Kg6 {[%clk 0:00:08]}  Kg8 {[%clk 0:00:11]} 62. h7+ {[%clk 0:00:09]}  Kh8 {[%clk 0:00:12]} 63. Kh6 {[%clk 0:00:10]} 1/2-1/2


[Site "https://www.chess.com"]

[Event "Titled Tuesday Blitz July 11 Late 2023"]
[White "Maghsoodloo, Parham"]
[Black "Fedoseev, Vladimir"]
[WhiteFideId "12539929"]
[BlackFideId "24130737"]
[WhiteElo "2988"]
[BlackElo "3084"]
[Result "0-1"]
[Round "6"]
[TimeControl "180+2"]
[Date "2023.07.11"]
[WhiteClock "0:00:03"]
[BlackClock "0:00:06"]
[Board "1"]

1. e4 {[%clk 0:02:54]}  e5 {[%clk 0:02:59]} 2. Nf3 {[%clk 0:02:55]}  Nc6 {[%clk 0:03:00]} 3. Bb5 {[%clk 0:02:55]}  Nf6 {[%clk 0:02:59]} 4. d3 {[%clk 0:02:55]}  Bc5 {[%clk 0:02:59]} 5. c3 {[%clk 0:02:54]}  O-O {[%clk 0:02:59]} 6. O-O {[%clk 0:02:54]}  Re8 {[%clk 0:02:59]} 7. Bg5 {[%clk 0:02:53]}  a6 {[%clk 0:02:57]} 8. Bxc6 {[%clk 0:02:47]}  dxc6 {[%clk 0:02:56]} 9. d4 {[%clk 0:02:48]}  exd4 {[%clk 0:02:55]} 10. cxd4 {[%clk 0:02:48]}  Be7 {[%clk 0:02:53]} 11. Nbd2 {[%clk 0:02:19]}  Bg4 {[%clk 0:02:41]} 12. Re1 {[%clk 0:02:09]}  c5 {[%clk 0:02:30]} 13. dxc5 {[%clk 0:01:51]}  Nd7 {[%clk 0:01:36]} 14. Bxe7 {[%clk 0:01:47]}  Qxe7 {[%clk 0:01:37]} 15. b4 {[%clk 0:01:46]}  Ne5 {[%clk 0:01:35]} 16. Qb3 {[%clk 0:01:45]}  Rad8 {[%clk 0:01:32]} 17. Nxe5 {[%clk 0:01:32]}  Qxe5 {[%clk 0:01:32]} 18. Nf1 {[%clk 0:01:20]}  Qd4 {[%clk 0:01:27]} 19. Ng3 {[%clk 0:01:16]}  h5 {[%clk 0:01:24]} 20. h3 {[%clk 0:01:12]}  Be6 {[%clk 0:01:24]} 21. Qe3 {[%clk 0:01:13]}  h4 {[%clk 0:01:23]} 22. Nh5 {[%clk 0:01:03]}  Qxe3 {[%clk 0:01:04]} 23. Rxe3 {[%clk 0:01:03]}  Rd2 {[%clk 0:01:01]} 24. a3 {[%clk 0:01:00]}  Red8 {[%clk 0:01:00]} 25. Nf4 {[%clk 0:00:59]}  Bc4 {[%clk 0:00:49]} 26. Rc3 {[%clk 0:00:56]}  R8d4 {[%clk 0:00:48]} 27. Rac1 {[%clk 0:00:56]}  Bb5 {[%clk 0:00:45]} 28. f3 {[%clk 0:00:45]}  c6 {[%clk 0:00:45]} 29. R3c2 {[%clk 0:00:39]}  g5 {[%clk 0:00:43]} 30. Nh5 {[%clk 0:00:36]}  Rxc2 {[%clk 0:00:33]} 31. Rxc2 {[%clk 0:00:36]}  Rd3 {[%clk 0:00:33]} 32. Kf2 {[%clk 0:00:25]}  Kf8 {[%clk 0:00:28]} 33. Nf6 {[%clk 0:00:21]}  Ke7 {[%clk 0:00:27]} 34. e5 {[%clk 0:00:20]}  Rxa3 {[%clk 0:00:21]} 35. Rd2 {[%clk 0:00:18]}  Bd3 {[%clk 0:00:09]} 36. Ke3 {[%clk 0:00:05]}  Bf5+ {[%clk 0:00:09]} 37. Kf2 {[%clk 0:00:04]}  Ke6 {[%clk 0:00:07]} 38. Ne8 {[%clk 0:00:02]}  Kxe5 {[%clk 0:00:06]} 39. Nd6 {[%clk 0:00:03]}  Be6 {[%clk 0:00:07]} 40. Nxb7 {[%clk 0:00:03]}  Bd5 {[%clk 0:00:05]} 41. Nd6 {[%clk 0:00:01]}  Rb3 {[%clk 0:00:05]} 42. Ra2 {[%clk 0:00:01]}  Rxf3+ {[%clk 0:00:03]} 43. gxf3 {[%clk 0:00:02]}  Bxa2 {[%clk 0:00:04]} 44. Ke3 {[%clk 0:00:02]}  Bd5 {[%clk 0:00:04]} 45. Nc8 {[%clk 0:00:01]}  Be6 {[%clk 0:00:04]} 46. Nb6 {[%clk 0:00:02]}  Bxh3 {[%clk 0:00:04]} 47. Nc4+ {[%clk 0:00:02]}  Kd5 {[%clk 0:00:03]} 48. Nd6 {[%clk 0:00:03]}  Be6 {[%clk 0:00:03]} 49. Ne4 {[%clk 0:00:03]}  g4 {[%clk 0:00:03]} 50. fxg4 {[%clk 0:00:03]}  Kc4 {[%clk 0:00:04]} 51. g5 {[%clk 0:00:03]}  h3 {[%clk 0:00:04]} 52. Kf2 {[%clk 0:00:03]}  h2 {[%clk 0:00:05]} 53. Ng3 {[%clk 0:00:03]}  Bd5 {[%clk 0:00:05]} 54. Ke3 {[%clk 0:00:03]}  h1=Q {[%clk 0:00:06]} 55. Nxh1 {[%clk 0:00:03]}  Bxh1 {[%clk 0:00:06]} 0-1


[Site "https://www.chess.com"]